Cogmind - Beta 12 @@@ ROGUE MODE // 2023.05.20 @ 20:54:27 Player: Mr Goldstein Result: Destroyed by Explosive Trap Performance ------------- Evolutions (0) 0 Regions Visited (1) 200 Robots Destroyed (13) 65 Value Destroyed (383) 383 Prototype IDs (0) 0 Alien Tech Used (0) 0 Bonus (0) 0 TOTAL SCORE: 648 Bonus ------- None Cogmind --------- Core Integrity 0/250 Matter 300/300 Energy 98/100 System Corruption 0% Temperature Cool (0) Movement Rolling (80) Location -10/Materials Parts ------- > --- POWER (1) -------- (None) > --- PROPULSION (2) --- Wheel Wheel > --- UTILITY (2) ------ Large Storage Unit > --- WEAPON (2) ------- (None) > --- INVENTORY (15) --- Ion Engine Wheel Wheel Grenade Launcher Peak State ------------ > --- POWER ------------ Ion Engine > --- PROPULSION ------- Wheel Wheel > --- UTILITY ---------- Small Storage Unit Large Storage Unit > --- WEAPON ----------- Light Assault Rifle Light Assault Rifle > --- INVENTORY -------- Ion Engine Wheel Assault Rifle [Rating: 7] Favorites ----------- Power Ion Engine Engine Ion Engine Propulsion Wheel Wheel Wheel Utility Small Storage Unit Storage Small Storage Unit Weapon Light Assault Rifle Ballistic Gun Light Assault Rifle Build | -11 -10 ------- Run | Jun Mat Slots Evolved . | . . Power . | . . Propulsion . | . . Utility . | . . Weapon . | . . Parts Attached 11 | 7 4 Power 3 | 2 1 Engine 3 | 2 1 Core . | . . Reactor . | . . Propulsion 3 | 2 1 Treads . | . . Leg . | . . Wheel 3 | 2 1 Hover . | . . Flight . | . . Utility 2 | 1 1 Device . | . . Storage 2 | 1 1 Processor . | . . Hackware . | . . Protection . | . . Artifact . | . . Weapon 3 | 2 1 Energy Gun . | . . Energy Cannon . | . . Ballistic Gun 3 | 2 1 Ballistic Cannon . | . . Launcher . | . . Special Weapon . | . . Impact Weapon . | . . Slashing Weapon . | . . Piercing Weapon . | . . Special Melee Weapon . | . . Unidentified Prototypes . | . . Parts Lost 4 | . 4 Power 1 | . 1 Propulsion . | . . Utility . | . . Weapon 3 | . 3 Highest Loss Streak 3 | . 3 To Critical Strikes . | . . Average Slot Usage (%) 83 | . 83 Engine 13 | . 13 Wheel 28 | . 28 Storage 14 | . 14 Ballistic Gun 27 | . 27 Naked Turns . | . . Heaviest Build 28 | 12 28 Greatest Support 20 | 20 20 Greatest Overweight (x) 1 | . 1 Average Overweight (x) . | . . Largest Inventory Capacity 15 | 8 15 Average Capacity 10 | 6 11 Most Carried 4 | 2 4 Average Carried 2 | . 2 Final Capacity 15 | 8 15 Final Carried 4 | 1 4 Class Distribution -------------------- 100% | Mutant Dominant Class ---------------- Mutant | -10/Materials Resources | -11 -10 ----------- Run | Jun Mat Matter Collected 421 | 198 223 Remotely . | . . Salvage Created 406 | . 406 Parts 27 | . 27 Haulers Intercepted . | . . Recyclers Shooed . | . . Parts Field Recycled . | . . Retrieved Matter . | . . Parts Self-Destructed . | . . Prevented . | . . Kills | -11 -10 ------- Run | Jun Mat Combat Hostiles Destroyed 12 | . 12 Guns 11 | . 11 AOE 1 | . 1 Classes Destroyed 3 | . 3 Worker 1 | . 1 Swarmer 3 | . 3 Grunt 9 | . 9 Best Kill Streak 6 | . 6 Combat Bots Only 5 | . 5 Max Kills in Single Turn 2 | . 2 Gunslinging . | . . Exploded 1 | . 1 Melee . | . . Uniques/NPCs Destroyed . | . . Combat | -11 -10 -------- Run | Jun Mat Damage Taken 770 | . 770 Core 250 | . 250 Absorbed by Shields . | . . Core Remaining (%) 100 | 100 . Volleys Fired 48 | . 48 Largest 2 | . 2 Hottest 40 | . 40 Shots Fired 95 | . 95 Gun 95 | . 95 Cannon . | . . Launcher . | . . Special . | . . Kinetic 95 | . 95 Thermal . | . . Explosive . | . . Electromagnetic . | . . Robot Hit Streak 17 | . 17 Robot Miss Streak 3 | . 3 Penetration Max . | . . Secondary Targets . | . . Shots Hit Robots 72 | . 72 Core Hits 27 | . 27 Critical Kills . | . . Critical Parts Destroyed . | . . Critical Strikes . | . . Melee Attacks . | . . Impact . | . . Slashing . | . . Piercing . | . . Sneak Attacks . | . . Combat Hostiles . | . . Follow-up Attacks . | . . Damage Inflicted 725 | . 725 Guns 639 | . 639 Cannons . | . . Explosions 86 | . 86 Melee . | . . Ramming . | . . Kinetic 639 | . 639 Thermal 86 | . 86 Explosive . | . . Electromagnetic . | . . Impact . | . . Slashing . | . . Piercing . | . . Highest Corruption . | . . Average Corruption . | . . Corruption Purged . | . . Corruption Blocked . | . . Overload Shots . | . . Overflow Damage 112 | . 112 Projectiles . | . . Explosions 112 | . 112 Melee . | . . Knockbacks . | . . Impact . | . . Kinetic . | . . Secondary . | . . Self-Inflicted Damage 206 | . 206 Shots 2 | . 2 Rammed . | . . Targets Rammed . | . . Kicked . | . . Crushed . | . . Highest Temperature 18 | . 18 Average Temperature 8 | . 8 Received Heat Transfer 279 | . 279 Siege Activations . | . . Robots Corrupted . | . . Combat Hostiles . | . . Parts Fried . | . . Impact Corruptions . | . . Robots Melted . | . . Combat Hostiles . | . . Parts Melted . | . . Heat Transferred 100 | . 100 Parts Sabotaged . | . . Parts Stolen . | . . Parts Stripped . | . . Power Chain Reactions . | . . Missiles Intercepted . | . . Alert | -11 -10 ------- Run | Jun Mat Peak Influence 369 | . 369 Initial . | . . Average 101 | . 113 Maximum Alert Level 1 | . 1 Low Security (%) 89 | 100 88 Level 1 10 | . 11 Level 2 . | . . Level 3 . | . . Level 4 . | . . Level 5 . | . . High Security . | . . Max Security . | . . Squads Dispatched 2 | . 2 Investigation 2 | . 2 Extermination . | . . Reinforcement . | . . Assault . | . . Garrison . | . . Intercept . | . . Searches Triggered . | . . Construction Impeded . | . . Haulers Reinforced . | . . Active Scanning Responses . | . . Cargo Convoy Interrupts . | . . Stealth | -11 -10 --------- Run | Jun Mat Distress Signals . | . . Communications Jammed . | . . Distress Signals . | . . Times Spotted 15 | . 15 Peak Tracking Total 3 | . 3 Tactical Retreats 1 | . 1 Traps | -11 -10 ------- Run | Jun Mat Traps Triggered 1 | . 1 Indirectly . | . . Trap Hack Attempts . | . . Triggered . | . . Disarmed . | . . Reprogrammed . | . . Reused . | . . Traps Extracted . | . . Installed . | . . Triggered . | . . Machines | -11 -10 ---------- Run | Jun Mat Machines Disabled 2 | . 2 Max in Single Turn 2 | . 2 Machines Repaired . | . . Machines Sabotaged . | . . Overloaded Fab Kills . | . . Hacking | -11 -10 --------- Run | Jun Mat Machines Accessed 2 | . 2 Terminals 2 | . 2 Fabricators . | . . Repair Stations . | . . Recycling Units . | . . Scanalyzers . | . . Garrison Access . | . . Total Hacks 7 | . 7 Successful 1 | . 1 Failed 6 | . 6 Catastrophic . | . . Database Lockouts . | . . Manual 7 | . 7 Terminals 7 | . 7 Fabricators . | . . Repair Stations . | . . Recycling Units . | . . Scanalyzers . | . . Garrison Access . | . . Terminal Hacks . | . . Fabricator Hacks . | . . Repair Station Hacks . | . . Recycling Unit Hacks . | . . Scanalyzer . | . . Garrison Access Hacks . | . . Unauthorized Hacks 1 | . 1 Terminals 1 | . 1 Disrupt 1 | . 1 Fabricators . | . . Repair Stations . | . . Recycling Units . | . . Scanalyzers . | . . Garrison Access . | . . Data Cores Recovered . | . . Used . | . . Hacking Detections 2 | . 2 Full Trace Events 2 | . 2 Feedback Events . | . . Feedback Blocked . | . . Robot Schematics Acquired . | . . Robots Built . | . . Authchips . | . . Time . | . . Total Robot Build Rating . | . . Part Schematics Acquired . | . . Parts Built . | . . Authchips . | . . Time . | . . Total Part Build Rating . | . . Parts Repaired . | . . Time . | . . Parts Recycled . | . . Recycled Matter . | . . Retrieved Matter . | . . Retrieved Components . | . . Parts Scanalyzed . | . . Part Schematics Acquired . | . . Parts Damaged . | . . Bothacking | -11 -10 ------------ Run | Jun Mat Used RIF Installer . | . . Robots Hacked . | . . Non-combat . | . . Combat . | . . Robot Hacks Applied . | . . Relay Couplers Released . | . . Fabnet Peak Effective % . | . . Robots Rewired . | . . Allies Hacked . | . . Hacks Repelled . | . . Allies | -11 -10 -------- Run | Jun Mat Total Allies . | . . Largest Group . | . . Highest-Rated Group . | . . Highest-Rated Ally . | . . Total Orders . | . . Ally Attacks . | . . Total Damage . | . . Kills . | . . Allies Corrupted . | . . Allies Melted . | . . Intel | -11 -10 ------- Run | Jun Mat Robot Analysis Total . | . . Derelict Logs Recovered . | . . Drone Launches . | . . Drone Recoveries . | . . Exploration | -11 -10 ------------- Run | Jun Mat Turns Passed 373 | 39 334 Spaces Moved 199 | 39 160 Core 9 | 9 . Treads . | . . Legs . | . . Wheels 190 | 30 160 Hover . | . . Flight . | . . Fastest Speed 50 | 50 80 Average Speed 82 | 73 84 Slowest Speed 95 | 80 95 Overloaded Moves . | . . Propulsion Burnouts . | . . Robots Hopped . | . . Cave-ins Triggered . | . . Exploration Rate (%) 18 | 4 32 Regions Visited 1 Branch Regions . Pre-discovered Areas . | . . Known Exits Taken . | . . Unknown Exits Taken 1 | 1 . Scrap Searched . | . . Spaces Dug . | . . Terrain Destroyed 40 | . 40 Melee . | . . Projectile . | . . AOE 40 | . 40 Terrain Rammed . | . . Walls Destroyed . | . . Machines Disabled . | . . Actions | -11 -10 --------- Run | Jun Mat Total 325 | 46 279 Wait 58 | . 58 Move 198 | 38 160 Hop . | . . Pick Up 6 | 1 5 Fast Attach 6 | 5 1 Attach 2 | 1 1 Detach . | . . Swap 3 | 1 2 Drop 4 | . 4 Fire 48 | . 48 Melee . | . . Ram . | . . Kick . | . . Crush . | . . Escape Stasis . | . . Rewire . | . . Trap . | . . Miscellaneous . | . . Route ------- -11/Junkyard -10/Materials History --------- Turn | Location | Event 2 | -11/Junkyard | Met Revision 17 30 | -11/Junkyard | Discovered new exit (range 12) 40 | -11/Junkyard | Entered Materials 307 | -10/Materials | Build established: Mutant 370 | -10/Materials | Core integrity fell below 50% 370 | -10/Materials | Core integrity fell below 20% 374 | -10/Materials | Destroyed by Explosive Trap Last Messages --------------- 00338_ G-34 Mercenary destroyed. 00351_ K-01 Serf collects debris. 00353_ Ion Engine destroyed. 00354_ K-01 Serf collects debris. 00358_ G-47 Trooper destroyed. 00358_ K-01 Serf destroyed. 00363_ S-10 Pest destroyed. 00369_ Fusion Modulator explodes. 00369_ Destroyed Flight Unit. 00369_ S-10 Pest destroyed. 00369_ Assault Rifle destroyed. 00369_ Destroyed Assault Rifle. 00369_ Lgt. Assault Rifle destroyed. 00369_ Destroyed Lgt. Assault Rifle. 00372_ U-05 Engineer lays Concrete. 00372_ Acquired 17 matter. 00374_ U-05 Engineer builds a Wall. 00374_ Extracted 42 matter. 00374_ Triggered Explosive Trap. 00374_ An explosion rips through the floor. Map ----- +----------------------------------------------------+ | ????????????????????????????????????????????????? | | ????????????????????????????????????????????????? | | ????????????????????????????????????????????????? | | ????????????????????????????????????????????????? | | ????????????????????????????????????????????????? | | ????????????????????????????????????????????????? | | ????????????????????????????????????????????????? | | ????????????????????????????????????????????????? | | ????????????????????????????????????????????????? | | ????????????????????????????????????????????????? | | ????????????????????????????????????????????????? | | ??????????????????????????????????????????????? | | ??????????????????????????????????????? #?????# | | ?????????????????????????????????????? ?????# | | ????????????????????????????????????? ?????+ | | ????????????????????????????????????? ??????# | | ??????????????????????+#+####??????? ???????# | | ??????????????????????? ?###### ????????# | | ????????????????#??????? ##"""";###???????# | | ????????????????# ??????? "" ; #???????# | | ????????????????# ??????? " ; #???????# | | ???????????????## ??????? " #???????# | | ???????????????# ##+##### ######???# | | ???????????????# %^^=#; ##### | | ???????????????# *=^=* = | | ???????????????# !%==@%##" | | ???????????????# ###/###" | | ???????????????####???? ##+#### | | ??????????????????????? " "# ## | | ?????????????????????? " "# ## """ | | ?????????????????????# =! # ## ## """ | | ?????????????????????# =! ####+### ## """ ! | | ?????????????????????# #??????# ## | | ?????????????????????# #??????# ## | | ?????????????????????# #??????# ## | | ?????????????????????# #??????# ## = | | ?????????????????????##########??????# ## | | ????????????????????????????????????? ## | | ????????????????????????????????????? ## | | ?????????????????????????????????????" ######## | | ????????????????????????????????????? #??????? | | ????????????????????????????????????? #??????? | | ????????????????????????????????????? ???????? | | ????????????????????????????????????? ???????? | | ????????????????????????????????????????????????? | | ????????????????????????????????????????????????? | | ????????????????????????????????????????????????? | | ????????????????????????????????????????????????? | | ????????????????????????????????????????????????? | | ????????????????????????????????????????????????? | +----------------------------------------------------+ Best States ------------- Heat Dissipation 25 Energy Generation 10 Energy Capacity 250 Matter Stores 300 Matter Capacity 300 Sight Range 16 Terrain Scan Density 10 Evasion (%) 50 Item Schematics ----------------- None Robot Schematics ------------------ None Fabricated ------------ Nothing Alien Tech Used ----------------- None Achievements -------------- None Challenges ------------ None Game ------ Seed ChargeFactoryMediator Manual? 0 Play Time 00:05:00 Cumulative 227.9 hours Start 2023.05.20 @ 20:51:44 End 2023.05.20 @ 20:54:27 Sessions 1 Manual Loads 0 Difficulty Rogue Special Mode None Game No. 696 Rogue 696 Adventurer 0 Explorer 0 Win Type - Total 10 Types 8/0/1/1/0/0/0/0/0 Lore% 83 Gallery% 82 Achievement% 72 Wizard Run 0 Options --------- ASCII 0 Keyboard 0 Movement Mouse Keybinds 0 Fullscreen 1 Font 16/SmallcapsGlow Map View 75x55 Tactical HUD 1 Map Filters NONE Filters NONE Steam 1 RUN: 0270ae9b-176c-4962-97d7-3aa888ae6fe7